bitfinex/quotes_SOLUSD_20230112
["timestamp","ask_amount","ask_price","bid_price","bid_amount"]
[1673512965959,25.91541,16.099,16.088,20.0]
[1673512966811,6.99541,16.098,16.087,202.47515886]
[1673512967023,18.92,16.097,16.087,202.47515886]
[1673512967237,53.59541,16.096,16.087,202.47515886]
[1673512967422,17.96,16.095,16.087,202.47515886]
[1673512967636,0.96,16.094,16.087,202.47515886]
[1673512967861,0.96,16.093,16.087,202.47515886]
[1673512968389,0.96,16.092,16.087,202.47515886]
[1673512968912,0.96,16.091,16.087,202.47515886]
[1673512970486,47.57,16.091,16.087,202.47515886]
[1673512970684,17.96,16.09,16.087,202.47515886]
[1673512970894,0.96,16.089,16.087,202.47515886]
[1673512974592,66.6,16.095,16.087,202.47515886]
[1673512974791,6.99541,16.095,16.087,202.47515886]
[1673512976176,1.92,16.094,16.087,202.47515886]
[1673512977337,18.92,16.094,16.087,202.47515886]
[1673512977740,26.99541,16.093,16.087,202.47515886]
[1673512978072,18.92,16.092,16.087,202.47515886]
[1673512980069,46.6,16.096,16.087,202.47515886]
[1673512980288,26.99541,16.095,16.087,202.47515886]
[1673512981311,1.92,16.094,16.087,202.47515886]
[1673512981541,18.92,16.094,16.087,202.47515886]
[1673512984594,26.99541,16.095,16.087,202.47515886]
[1673512984793,20.0,16.095,16.087,202.47515886]
[1673512985004,20.0,16.096,16.087,202.47515886]
[1673512985208,73.59541,16.095,16.087,202.47515886]
[1673512985421,26.99541,16.094,16.087,202.47515886]
[1673512985739,20.0,16.092,16.087,202.47515886]
[1673512985950,25.91541,16.091,16.087,202.47515886]
[1673512992563,6.99541,16.09,16.087,202.47515886]
[1673512993916,1.92,16.089,16.087,202.47515886]
[1673512998053,18.92,16.089,16.087,202.47515886]
[1673512999428,25.91541,16.089,16.087,202.47515886]
[1673512999735,119.12532724,16.088,16.087,202.47515886]
[1673512999926,137.08532724,16.088,16.087,202.47515886]
[1673513000134,138.04532724,16.088,16.087,140.83515886]
[1673513000555,138.04532724,16.088,16.087,40.83515886]
[1673513000782,138.04532724,16.088,16.087,0.00515886]
[1673513001003,157.19029452,16.088,16.087,0.00515886]
[1673513002148,215.30677164,16.088,16.087,0.00515886]
[1673513003300,137.24180436,16.088,16.087,0.00515886]
[1673513003512,6.99541,16.088,16.087,0.00515886]
[1673513004990,24.95541,16.088,16.087,0.00515886]
[1673513005198,25.91541,16.088,16.087,0.00515886]
[1673513006023,6.99541,16.088,16.087,0.00515886]
[1673513006478,46.61,16.093,16.087,0.00515886]
[1673513006787,53.60541,16.093,16.087,0.00515886]
[1673513006975,72.75037728,16.093,16.087,0.00515886]
[1673513007396,18.92,16.092,16.087,0.00515886]
[1673513010168,6.99541,16.091,16.087,0.00515886]
[1673513010348,18.92,16.09,16.087,0.00515886]
[1673513010552,25.91541,16.09,16.087,0.00515886]
[1673513019718,18.92,16.09,16.087,0.00515886]
[1673513019928,1.92,16.09,16.087,0.00515886]
[1673513023690,20.0,16.089,16.079,9.59212097]
[1673513023905,20.0,16.087,16.079,9.59212097]
[1673513024241,23.99541,16.086,16.079,9.59212097]
[1673513024426,0.96,16.085,16.079,9.59212097]
[1673513024638,0.96,16.084,16.079,9.59212097]
[1673513024855,0.96,16.083,16.079,9.59212097]
[1673513025289,0.96,16.082,16.079,9.59212097]
[1673513025500,0.96,16.081,16.079,9.59212097]
[1673513025905,23.99541,16.086,16.079,9.59212097]
[1673513026115,1.92,16.085,16.079,9.59212097]
[1673513029585,46.62,16.088,16.079,9.59212097]
[1673513029912,6.99541,16.087,16.079,9.59212097]
[1673513030949,1.92,16.086,16.079,9.59212097]
[1673513032527,18.92,16.086,16.079,9.59212097]
[1673513034428,1.92,16.086,16.079,9.59212097]
[1673513034965,18.92,16.086,16.079,9.59212097]
[1673513039068,1.92,16.086,16.079,9.59212097]
[1673513041583,18.92,16.086,16.079,9.59212097]
[1673513041992,1.92,16.086,16.079,9.59212097]
[1673513042741,54.10186369,16.086,16.079,9.59212097]
[1673513042952,130.8868544,16.085,16.079,9.59212097]
[1673513043262,20.0,16.083,16.079,9.59212097]
[1673513043471,71.59541,16.082,16.079,9.59212097]
[1673513043686,0.96,16.081,16.079,9.59212097]
[1673513044000,0.96,16.08,16.079,9.59212097]
[1673513044211,1.92,16.08,16.079,9.59212097]
[1673513048506,48.77945118,16.08,16.079,7.30492097]
[1673513048715,65.77945118,16.08,16.079,7.30492097]
[1673513049148,119.42486118,16.08,16.079,7.30492097]
[1673513050316,138.56982846,16.08,16.079,2.097e-05]
[1673513051892,100.50486118,16.08,16.079,2.097e-05]
[1673513052100,53.85486118,16.08,16.079,2.097e-05]
[1673513052523,6.99541,16.08,16.079,2.097e-05]
[1673513052847,19.14496728,16.082,16.079,2.097e-05]
[1673513053155,46.64,16.081,16.079,2.097e-05]
[1673513053356,46.64,16.083,16.079,2.097e-05]
[1673513053576,53.63541,16.083,16.079,2.097e-05]
[1673513053787,50.74471784,16.082,16.079,2.097e-05]
[1673513054514,18.92,16.081,16.079,2.097e-05]
[1673513054920,72.79037728,16.08,16.079,2.097e-05]
[1673513055130,91.71037728,16.08,16.079,2.097e-05]
[1673513055347,162.45509512,16.08,16.079,2.097e-05]
[1673513055988,142.45509512,16.08,16.079,2.097e-05]
[1673513057031,123.31012784,16.08,16.079,2.097e-05]
[1673513057254,143.31012784,16.08,16.079,2.097e-05]
[1673513057777,162.45509512,16.08,16.079,2.097e-05]
[1673513058410,162.45509512,16.08,16.063,110.6124]
[1673513058728,65.84,16.07,16.063,15.6124]
[1673513059032,0.88959596,16.069,16.056,112.6644]
[1673513059251,0.88959596,16.067,16.061,24.902564]
[1673513059452,0.88959596,16.065,16.061,24.902564]
[1673513059664,0.88959596,16.067,16.061,24.902564]
[1673513059874,0.88959596,16.065,16.061,24.902564]
[1673513060082,1.92,16.068,16.061,24.902564]
[1673513060083,0.88959596,16.067,16.061,24.902564]
[1673513060524,20.0,16.069,16.061,24.902564]
[1673513061778,65.84,16.07,16.061,24.902564]
[1673513063033,65.84,16.07,16.062,20.0]
[1673513064289,13.23,16.07,16.062,20.0]
[1673513064503,13.23,16.07,16.061,24.902564]
[1673513064923,6.99541,16.079,16.062,20.0]
[1673513065134,65.88,16.08,16.063,21.92]
[1673513065343,65.88,16.08,16.064,133.5294]
[1673513065967,65.88,16.08,16.066,20.0]
[1673513067246,1.92,16.079,16.066,20.0]
[1673513067449,65.88,16.08,16.066,20.0]
[1673513067864,65.97,16.08,16.066,20.0]
[1673513068285,19.14496728,16.079,16.065,116.6808]
[1673513068501,53.64541,16.078,16.065,116.6808]
[1673513068932,1.92,16.077,16.066,20.0]
[1673513069458,0.96,16.077,16.066,20.0]
[1673513069868,17.96,16.077,16.066,20.0]
[1673513070387,64.61,16.077,16.066,20.0]
[1673513070604,64.61,16.077,16.065,116.6808]
[1673513071021,71.60541,16.077,16.065,116.6808]
[1673513071349,0.96,16.076,16.065,116.6808]
[1673513071537,0.96,16.075,16.065,116.6808]
[1673513071752,0.96,16.074,16.065,116.6808]
[1673513071974,0.96,16.074,16.066,20.0]
[1673513072187,0.96,16.073,16.065,116.6808]
[1673513072396,0.96,16.072,16.065,116.6808]
[1673513072821,0.96,16.071,16.065,116.6808]
[1673513073346,0.96,16.07,16.065,116.6808]
[1673513073554,0.96,16.071,16.065,116.6808]
[1673513073766,70.64541,16.077,16.066,20.0]
[1673513074080,21.92,16.076,16.065,116.6808]
[1673513074284,23.99541,16.075,16.065,116.6808]
[1673513074483,1.92,16.074,16.065,116.6808]
[1673513074906,1.92,16.074,16.064,133.5294]
[1673513074907,20.0,16.072,16.064,113.5294]
[1673513075215,66.08,16.07,16.064,113.5294]
[1673513075439,0.96,16.069,16.058,116.8809]
[1673513075648,0.96,16.068,16.058,116.8809]
[1673513075869,0.96,16.067,16.058,116.8809]
[1673513076176,0.96,16.066,16.058,116.8809]
[1673513076582,0.96,16.066,16.059,194.97150219]
[1673513078094,66.08,16.07,16.06,20.0]
[1673513078996,66.08,16.07,16.059,194.97150219]
[1673513079646,1.92,16.069,16.059,194.97150219]
[1673513080682,38.06496728,16.069,16.059,194.97150219]
[1673513080887,6.99541,16.068,16.059,194.97150219]
[1673513081110,1.92,16.067,16.059,194.97150219]
[1673513082468,38.06496728,16.067,16.059,194.97150219]
[1673513082698,6.99541,16.066,16.059,194.97150219]
[1673513083010,20.0,16.064,16.059,194.97150219]
[1673513083220,53.69541,16.063,16.059,194.97150219]
[1673513083431,25.91541,16.062,16.059,194.97150219]
[1673513083645,73.69541,16.061,16.059,194.97150219]
[1673513083958,25.91541,16.06,16.059,189.56040219]
[1673513084182,72.61541,16.06,16.059,189.56040219]
[1673513085215,54.65541,16.06,16.059,189.56040219]
[1673513085411,6.99541,16.06,16.059,189.56040219]
[1673513085845,26.14037728,16.06,16.059,189.56040219]
[1673513086167,72.84037728,16.06,16.059,189.56040219]
[1673513086573,72.84037728,16.06,16.059,164.65620319]
[1673513086574,91.76037728,16.06,16.059,164.65620319]
[1673513087424,53.69541,16.06,16.059,164.65620319]
[1673513087621,6.99541,16.06,16.059,164.65620319]
[1673513087834,36.68320108,16.063,16.059,164.65620319]
[1673513088039,69.92440446,16.065,16.059,164.65620319]
[1673513088885,20.0,16.065,16.059,164.65620319]
[1673513089415,1.92,16.064,16.059,164.65620319]
[1673513090155,36.68320108,16.069,16.059,164.65620319]
[1673513090482,19.14496728,16.069,16.059,164.65620319]
[1673513090882,26.14037728,16.069,16.059,164.65620319]
[1673513091417,6.99541,16.069,16.059,164.65620319]
[1673513091625,39.14496728,16.072,16.059,164.65620319]
[1673513091842,46.67,16.071,16.059,164.65620319]
[1673513093086,19.14496728,16.069,16.059,164.65620319]
[1673513093299,72.82037728,16.069,16.059,164.65620319]
[1673513093509,20.0,16.068,16.059,164.65620319]
[1673513093715,66.68,16.067,16.059,164.65620319]
[1673513093930,0.96,16.066,16.059,164.65620319]
[1673513094140,0.96,16.065,16.059,164.65620319]
[1673513094351,0.96,16.064,16.059,164.65620319]
[1673513094558,20.10496728,16.064,16.059,164.65620319]
[1673513095187,0.96,16.063,16.059,164.65620319]
[1673513095516,0.96,16.062,16.059,164.65620319]
[1673513096050,20.10496728,16.063,16.059,164.65620319]
[1673513096264,0.96,16.062,16.059,164.65620319]
[1673513097940,20.96,16.061,16.059,164.65620319]
[1673513098150,86.80496728,16.061,16.059,164.65620319]
[1673513098352,17.96,16.06,16.059,164.65620319]
[1673513098561,38.06496728,16.06,16.059,164.65620319]
[1673513098892,58.06496728,16.06,16.059,164.65620319]
[1673513100356,41.06496728,16.06,16.059,164.65620319]
[1673513101712,19.14496728,16.06,16.059,164.65620319]
[1673513101939,20.0,16.061,16.059,164.65620319]
[1673513102139,19.14496728,16.06,16.059,164.65620319]
[1673513102352,20.0,16.061,16.059,164.65620319]
[1673513103419,39.14496728,16.061,16.059,164.65620319]
[1673513103723,66.7,16.063,16.059,164.65620319]
[1673513104442,26.14037728,16.062,16.059,164.65620319]
[1673513104650,20.0,16.06,16.059,164.65620319]
[1673513104869,19.14496728,16.061,16.059,164.65620319]
[1673513106354,1.92,16.06,16.059,164.65620319]
[1673513107607,19.14496728,16.061,16.059,164.65620319]
[1673513107826,108.82539818,16.064,16.059,164.65620319]
[1673513108346,46.7,16.063,16.059,164.65620319]
[1673513108556,20.0,16.062,16.059,164.65620319]
[1673513109185,39.14496728,16.062,16.059,164.65620319]
[1673513109390,1.92,16.061,16.059,164.65620319]
[1673513109603,0.96,16.061,16.059,164.65620319]
[1673513110134,46.7,16.063,16.059,164.65620319]
[1673513110336,135.51539818,16.064,16.059,164.65620319]
[1673513110973,90.54505113,16.064,16.059,164.65620319]
[1673513111187,66.69,16.065,16.059,164.65620319]
[1673513111389,88.36,16.07,16.059,164.65620319]
[1673513111594,88.36,16.07,16.06,20.0]
[1673513113282,88.36,16.07,16.059,164.65620319]
[1673513113484,88.36,16.07,16.06,20.0]
[1673513113915,88.36,16.07,16.059,164.65620319]
[1673513114235,63.14037728,16.069,16.059,164.65620319]
[1673513114431,73.67541,16.068,16.059,138.92330319]
[1673513114642,20.0,16.066,16.059,36.97570319]
[1673513114849,92.60541,16.065,16.059,36.97570319]
[1673513115071,20.0,16.063,16.059,36.97570319]
[1673513115274,20.0,16.061,16.059,36.97570319]
[1673513115490,55.61541,16.06,16.059,4.65230319]
[1673513115701,20.0,16.059,16.05,24.92062]
[1673513116010,72.62541,16.058,16.05,24.92062]
[1673513116221,6.99541,16.057,16.05,24.92062]
[1673513116546,1.92,16.056,16.05,24.92062]
[1673513116766,1.92,16.056,16.047,45.05232]
[1673513116955,1.92,16.056,16.043,110.6497]
[1673513117169,88.46,16.05,16.043,110.6497]
[1673513117384,1.92,16.049,16.043,110.6497]
[1673513117585,41.06496728,16.049,16.043,110.6497]
[1673513117792,20.10496728,16.049,16.043,110.6497]
[1673513118005,0.96,16.049,16.029,115.552]
[1673513118229,20.10496728,16.048,16.029,115.552]
[1673513118439,67.7,16.047,16.029,115.552]
[1673513118659,0.96,16.046,16.029,115.552]
[1673513118976,0.96,16.045,16.029,115.552]
[1673513119179,20.0,16.043,16.03,0.83833514]
[1673513119379,88.25,16.04,16.03,0.83833514]
[1673513119587,88.02,16.04,16.03,0.83833514]
[1673513120429,87.70834,16.04,16.03,20.83833514]
[1673513120846,17.47,16.04,16.03,20.83833514]
[1673513121268,17.47,16.04,16.03,45.78100814]
[1673513124026,26.53,16.04,16.03,25.78100814]
[1673513124220,26.53,16.04,16.03,45.78100814]
[1673513124434,132.46,16.05,16.031,0.96]
[1673513124649,132.79,16.05,16.032,0.96]
[1673513124840,151.93496728,16.05,16.033,20.0]
[1673513125053,132.79,16.05,16.034,20.0]
[1673513125370,132.79,16.05,16.035,21.92]
[1673513125801,132.79,16.05,16.035,20.96]
[1673513126006,26.53,16.05,16.036,6.31286226]
[1673513126215,133.12,16.06,16.037,20.96]
[1673513126419,20.0,16.059,16.038,20.96]
[1673513126630,20.0,16.059,16.04,20.0]
[1673513126961,20.0,16.059,16.041,114.1325]
[1673513127153,179.82,16.06,16.042,20.0]
[1673513127366,179.82,16.06,16.043,20.0]
[1673513127690,179.82,16.06,16.044,20.0]
[1673513127893,178.61,16.06,16.044,20.0]
[1673513130515,178.61,16.06,16.045,22.729]
[1673513131587,26.28,16.06,16.046,1.92]
[1673513131797,46.71,16.059,16.047,9.084]
[1673513132015,26.28,16.06,16.048,20.0]
[1673513132532,26.28,16.06,16.049,12.39]
[1673513132941,46.68,16.068,16.049,12.39]
[1673513133251,46.68,16.069,16.05,223.86397578]
[1673513133460,26.27,16.07,16.051,36.2]
[1673513133690,26.27,16.07,16.052,21.92]
[1673513133880,26.27,16.07,16.053,37.17]
[1673513134089,26.27,16.07,16.054,21.92]
[1673513134299,26.27,16.07,16.056,20.0]
[1673513134506,26.27,16.07,16.058,20.0]
[1673513134721,26.27,16.07,16.059,20.26]
[1673513134929,26.27,16.07,16.06,1.92]
[1673513135371,46.66,16.076,16.062,0.89858315]
[1673513135583,46.65,16.079,16.064,0.89858315]
[1673513135788,46.65,16.079,16.066,0.89858315]
[1673513135997,46.65,16.079,16.065,0.89858315]
[1673513136198,46.65,16.079,16.065,20.89858315]
[1673513136610,46.65,16.079,16.067,0.89858315]
[1673513138112,46.65,16.079,16.067,20.89858315]
[1673513138840,46.65,16.079,16.067,20.0]
[1673513139065,46.65,16.079,16.068,0.65293678]
[1673513139372,46.65,16.079,16.067,20.0]
[1673513139553,46.65,16.079,16.068,0.72112682]
[1673513140402,46.65,16.079,16.068,17.72112682]
[1673513140820,46.65,16.079,16.068,0.72112682]
[1673513141450,26.41,16.08,16.069,40.77]
[1673513141766,26.41,16.08,16.07,20.0]
[1673513141981,26.41,16.08,16.071,0.96]
[1673513142421,46.62,16.089,16.072,0.96]
[1673513142610,20.0,16.088,16.072,0.96]
[1673513142829,46.63,16.087,16.072,0.96]
[1673513143038,20.0,16.086,16.071,17.96]
[1673513143251,46.63,16.085,16.072,20.0]
[1673513143460,46.63,16.085,16.073,17.0]
[1673513145454,26.37,16.08,16.07,20.0]
[1673513145666,26.37,16.08,16.069,20.0]
[1673513145887,46.65,16.079,16.069,20.0]
[1673513148920,26.37,16.08,16.07,1.92]
[1673513149133,26.37,16.08,16.069,66.68]
[1673513149560,26.37,16.08,16.069,20.0]
[1673513149779,46.65,16.079,16.069,20.0]
[1673513150396,26.37,16.08,16.069,20.0]
[1673513150818,46.65,16.079,16.069,20.0]
[1673513153654,26.37,16.08,16.069,20.0]
[1673513155656,26.37,16.08,16.069,66.68]
[1673513157351,26.37,16.08,16.07,1.92]
[1673513157756,26.37,16.08,16.069,66.68]
[1673513157967,46.65,16.079,16.066,20.0]
[1673513158191,0.96,16.078,16.066,20.0]
[1673513158398,47.62,16.077,16.066,20.0]
[1673513159762,46.66,16.077,16.066,20.0]
[1673513159973,46.65,16.079,16.066,20.0]
[1673513161244,46.65,16.079,16.067,47.64]
[1673513161647,46.65,16.079,16.066,20.0]
[1673513161965,46.65,16.079,16.065,139.339]
[1673513162386,0.96,16.078,16.065,139.339]
[1673513162600,46.66,16.077,16.065,139.339]
[1673513163243,41.66,16.077,16.065,139.339]
[1673513163976,41.66,16.077,16.066,17.0]
[1673513164191,41.66,16.077,16.065,139.339]
[1673513164406,18.92,16.076,16.058,63.63]
[1673513164606,132.71,16.07,16.057,43.63]
[1673513164817,47.64,16.069,16.056,289.7635]
[1673513165456,47.64,16.069,16.056,246.1335]
[1673513165768,47.64,16.069,16.056,226.1335]
[1673513165980,46.68,16.069,16.056,226.1335]
[1673513166176,46.68,16.069,16.056,232.24221767]
[1673513167454,46.68,16.069,16.057,1.92]
[1673513167659,46.68,16.069,16.057,33.86]
[1673513167972,21.92,16.068,16.056,226.1335]
[1673513168184,46.68,16.067,16.056,226.1335]
[1673513168395,0.96,16.066,16.056,226.1335]
[1673513168591,46.69,16.065,16.056,226.1335]
[1673513168802,46.68,16.067,16.056,226.1335]
[1673513169012,0.96,16.066,16.056,226.1335]
[1673513169643,0.96,16.067,16.056,226.1335]
[1673513169855,46.69,16.066,16.056,226.1335]
[1673513171439,46.68,16.068,16.056,226.1335]
[1673513171646,46.68,16.069,16.056,226.1335]
[1673513172495,46.68,16.069,16.057,20.96]
[1673513173018,46.68,16.069,16.058,17.0]
[1673513173211,132.71,16.07,16.06,20.0]
[1673513174066,132.71,16.07,16.058,17.33]
[1673513174376,46.68,16.069,16.056,226.1335]
[1673513175111,46.68,16.069,16.057,20.0]
[1673513175432,1.92,16.068,16.057,20.0]
[1673513175632,46.68,16.067,16.057,20.0]
[1673513175845,0.96,16.066,16.057,20.0]
[1673513176053,46.68,16.067,16.057,20.0]
[1673513176270,46.68,16.069,16.057,20.0]
[1673513176483,46.68,16.069,16.059,20.0]
[1673513178484,132.71,16.07,16.059,20.0]
[1673513179195,46.68,16.069,16.059,20.0]
[1673513179406,46.68,16.069,16.06,0.96]
[1673513179617,132.71,16.07,16.06,22.73]
[1673513179847,132.71,16.07,16.061,20.0]
[1673513180153,133.03,16.08,16.062,20.96]
[1673513180367,133.03,16.08,16.063,0.96]
[1673513180580,133.03,16.08,16.065,20.0]
[1673513180788,133.03,16.08,16.066,27.7]
[1673513181006,46.65,16.079,16.066,27.7]
[1673513181412,46.65,16.079,16.067,20.0]
[1673513181624,1.92,16.078,16.067,20.0]
[1673513182258,46.65,16.079,16.067,20.0]
[1673513182466,133.03,16.08,16.068,32.23]
[1673513182796,133.03,16.08,16.069,20.0]
[1673513183106,133.03,16.08,16.07,30.45]
[1673513183322,133.03,16.08,16.071,0.96]
[1673513183720,133.03,16.08,16.07,0.96]
[1673513183932,26.69,16.08,16.07,0.96]
[1673513184246,26.69,16.08,16.071,0.96]
[1673513184889,26.69,16.08,16.069,53.75]
[1673513185198,26.69,16.08,16.069,33.75]
[1673513185403,26.69,16.08,16.069,20.0]
[1673513186036,26.69,16.08,16.071,20.0]
[1673513188465,26.69,16.08,16.07,41.71]
[1673513189835,26.69,16.08,16.068,42.82]
[1673513190454,26.69,16.08,16.069,0.96]
[1673513190868,26.69,16.08,16.068,42.82]
[1673513192571,26.69,16.08,16.069,20.96]
[1673513193822,26.69,16.08,16.069,20.0]
[1673513194024,26.69,16.08,16.068,42.82]
[1673513196461,46.65,16.079,16.067,20.0]
[1673513196771,26.69,16.08,16.067,20.0]
[1673513197925,26.4,16.08,16.068,44.51]
[1673513198139,26.4,16.08,16.069,20.0]
[1673513198350,26.4,16.08,16.07,0.96]
[1673513198852,26.4,16.08,16.069,20.0]
[1673513199278,26.4,16.08,16.07,0.96]
[1673513200120,26.4,16.08,16.071,0.96]
[1673513200448,26.4,16.08,16.072,0.96]
[1673513200759,46.62,16.089,16.074,20.0]
[1673513200977,46.62,16.089,16.075,67.62]
[1673513201289,46.62,16.089,16.076,20.79781634]
[1673513201510,46.62,16.089,16.077,46.65]
[1673513201815,26.33,16.09,16.077,46.65]
[1673513202034,26.33,16.09,16.078,20.0]
[1673513203907,1.92,16.089,16.078,20.0]
[1673513204746,0.96,16.089,16.078,20.0]
[1673513204962,26.33,16.09,16.078,20.0]
[1673513205612,26.33,16.09,16.079,0.96]
[1673513205915,26.33,16.09,16.08,0.96]
[1673513206227,26.33,16.09,16.081,0.96]
[1673513207288,26.33,16.09,16.082,0.96]
[1673513207505,26.33,16.09,16.083,0.96]
[1673513209087,26.33,16.09,16.083,47.6]
[1673513209295,26.33,16.09,16.084,20.0]
[1673513209492,26.33,16.09,16.082,20.96]
[1673513209703,26.33,16.09,16.084,20.0]
[1673513211064,26.33,16.09,16.083,20.96]
[1673513212856,26.33,16.09,16.083,20.0]
[1673513214661,17.57,16.09,16.083,20.0]
[1673513214973,46.62,16.089,16.076,46.66]
[1673513215186,21.92,16.088,16.074,179.0198]
[1673513215398,46.63,16.087,16.074,179.0198]
[1673513215795,46.63,16.087,16.074,132.3598]
[1673513216215,46.63,16.087,16.075,0.96]
[1673513216528,87.67,16.09,16.075,0.96]
[1673513216529,46.62,16.089,16.076,0.96]
[1673513216736,17.54,16.09,16.077,0.96]
[1673513216950,17.54,16.09,16.078,46.65]
[1673513217160,17.54,16.09,16.079,1.92]
[1673513217388,17.54,16.09,16.08,0.96]
[1673513217603,17.54,16.09,16.081,0.96]
[1673513217815,17.54,16.09,16.082,0.96]
[1673513218211,17.54,16.09,16.081,0.96]
[1673513218444,46.62,16.089,16.078,20.0]
[1673513218661,17.54,16.09,16.079,1.92]
[1673513225161,46.6,16.096,16.08,20.0]
[1673513225373,88.03,16.1,16.081,48.56]
[1673513225374,46.59,16.099,16.081,48.56]
[1673513225572,46.59,16.099,16.082,20.0]
[1673513225782,46.59,16.099,16.083,48.56]
[1673513225997,46.59,16.099,16.085,20.0]
[1673513226207,46.59,16.099,16.086,1.92]
[1673513228410,17.72,16.1,16.086,1.92]
[1673513228959,46.59,16.099,16.086,1.92]
[1673513230203,17.72,16.1,16.086,1.92]
[1673513230415,46.59,16.099,16.086,1.92]
[1673513231061,46.59,16.099,16.086,9.13428373]
[1673513233078,46.59,16.099,16.086,1.92]
[1673513233273,46.59,16.099,16.086,9.14168327]
[1673513233709,46.59,16.099,16.086,1.92]
[1673513236010,46.59,16.099,16.085,20.0]
[1673513236325,46.59,16.099,16.084,66.63]
[1673513236326,21.92,16.098,16.083,115.9466]
[1673513236637,20.0,16.096,16.084,20.0]
[1673513236858,48.52,16.095,16.084,20.0]
[1673513237255,20.0,16.094,16.084,20.0]
[1673513237481,17.51,16.09,16.084,20.0]
[1673513243370,17.51,16.09,16.076,46.66]
[1673513243681,46.62,16.089,16.075,46.66]
[1673513243892,46.62,16.089,16.074,179.0198]
[1673513245780,46.62,16.089,16.076,20.0]
[1673513246302,46.62,16.089,16.077,1.92]
[1673513250419,88.05,16.09,16.077,1.92]
[1673513250627,46.62,16.089,16.077,1.92]
[1673513252837,46.62,16.089,16.075,86.66]
[1673513253026,46.62,16.089,16.075,40.0]
[1673513254179,46.62,16.089,16.076,1.92]
[1673513257333,46.62,16.089,16.076,21.92]
[1673513258086,46.61,16.093,16.076,21.92]
[1673513258407,17.52,16.09,16.076,21.92]
[1673513258716,46.62,16.089,16.076,21.92]
[1673513263008,46.62,16.089,16.075,20.0]
[1673513263224,21.92,16.088,16.075,20.0]
[1673513263440,46.63,16.087,16.075,20.0]
[1673513265107,21.92,16.086,16.075,20.0]
[1673513265318,46.63,16.085,16.075,20.0]
[1673513265755,46.63,16.087,16.075,20.0]
[1673513266279,46.63,16.087,16.076,1.92]
[1673513266493,46.63,16.087,16.076,0.96]
[1673513267233,46.62,16.088,16.076,0.96]
[1673513267640,46.62,16.089,16.076,1.92]
[1673513267855,46.62,16.089,16.076,21.92]
[1673513268919,46.62,16.089,16.076,1.92]
[1673513269965,46.62,16.089,16.076,0.96]
[1673513270275,46.62,16.089,16.077,0.96]
[1673513270495,46.62,16.089,16.078,0.96]
[1673513271223,46.62,16.089,16.075,20.0]
[1673513271443,46.62,16.089,16.076,0.96]
[1673513271629,20.0,16.088,16.077,0.96]
[1673513271840,46.63,16.087,16.077,0.96]
[1673513272165,46.62,16.089,16.077,0.96]
[1673513275338,46.62,16.089,16.076,20.96]
[1673513275548,46.62,16.089,16.077,0.96]